{"text_format":"3","workbook":"xlsx","n_sheets":4,"sheets":["Mrs. Lauren's Class","Mr. Jonathan's Class","Mrs. Lilac's Class","Comparison"],"not_rendered":{"charts":11},"read":"whole","date_system":"1900"}

{"sheet":"Mrs. Lauren's Class","index":0,"n_rows":12,"n_cols":4,"rows_kept":12,"merged":[[0,0,0,3],[1,0,1,3]]}
["Plant Growth in Mrs. Lauren's Class (in inches)"]
[]
[null,"Plant 1 (Sunlight only)","Plant 2 (Water only)","Plant 3 (Both sunlight and water)"]
["Day 1 (Initial Planting Day)"]
["Day 2"]
["Day 3"]
["Day 4"]
["Day 5"]
["Day 6"]
["Day 7 (Final Measuring Day)"]
["Total Plant Growth",{"$f":"B4+B5+B6+B7+B8+B9+B10","v":0},{"$f":"C4+C5+C6+C7+C8+C9+C10","v":0},0]
["Average",{"$f":"AVERAGE(B4:B10)","v":{"$error":"#DIV/0!"}},{"$f":"AVERAGE(C4:C10)","v":{"$error":"#DIV/0!"}},{"$error":"#DIV/0!"}]

{"sheet":"Mr. Jonathan's Class","index":1,"n_rows":12,"n_cols":4,"rows_kept":12,"merged":[[0,0,0,3],[1,0,1,3]]}
["Plant Growth in Mr. Jonathan's Class (in inches)"]
[]
[null,"Plant 1 (Sunlight only)","Plant 2 (Water only)","Plant 3 (Both sunlight and water)"]
["Day 1 (Initial Planting Day)"]
["Day 2"]
["Day 3"]
["Day 4"]
["Day 5"]
["Day 6"]
["Day 7 (Final Measuring Day)"]
["Total Plant Growth",{"$f":"B4+B5+B6+B7+B8+B9+B10","v":0},{"$f":"C4+C5+C6+C7+C8+C9+C10","v":0},0]
["Average",{"$f":"AVERAGE(B4:B10)","v":{"$error":"#DIV/0!"}},{"$f":"AVERAGE(C4:C10)","v":{"$error":"#DIV/0!"}},{"$error":"#DIV/0!"}]

{"sheet":"Mrs. Lilac's Class","index":2,"n_rows":12,"n_cols":4,"rows_kept":12,"merged":[[0,0,0,3],[1,0,1,3]]}
["Plant Growth in Mrs. Lilac's Class (in inches)"]
[]
[null,"Plant 1 (Sunlight only)","Plant 2 (Water only)","Plant 3 (Both sunlight and water)"]
["Day 1 (Initial Planting Day)"]
["Day 2"]
["Day 3"]
["Day 4"]
["Day 5"]
["Day 6"]
["Day 7 (Final Measuring Day)"]
["Total Plant Growth",{"$f":"B4+B5+B6+B7+B8+B9+B10","v":0},{"$f":"C4+C5+C6+C7+C8+C9+C10","v":0},0]
["Average",{"$f":"AVERAGE(B4:B11)","v":0},{"$f":"AVERAGE(C4:C11)","v":0},0]

{"sheet":"Comparison","index":3,"n_rows":7,"n_cols":5,"rows_kept":7,"merged":[[0,1,0,4],[1,1,1,4]]}
[null,"Mrs. Lauren's Class, Mr. Jonathan's Class, and Mrs. Lilac's Class Plant Growth Totals (in inches)"]
[]
[null,null,"Plant 1 Total","Plant 2 Total","Plant 3 Total"]
[null,"Mrs. Lauren's Class",{"$f":"'Mrs. Lauren''s Class'!B11","v":0},{"$f":"'Mrs. Lauren''s Class'!C11","v":0},{"$f":"'Mrs. Lauren''s Class'!D11","v":0}]
[null,"Mr. Jonathan's Class",{"$f":"'Mr. Jonathan''s Class'!B11","v":0},{"$f":"'Mr. Jonathan''s Class'!C11","v":0},{"$f":"'Mr. Jonathan''s Class'!D11","v":0}]
[null,"Mrs. Lilac's Class",{"$f":"'Mrs. Lilac''s Class'!B11","v":0},{"$f":"'Mrs. Lilac''s Class'!C11","v":0},{"$f":"'Mrs. Lilac''s Class'!D11","v":0}]
[null,"Averages",{"$f":"AVERAGE(C4:C6)","v":{"v":0,"d":"0.00"}},{"$f":"AVERAGE(D4:D6)","v":{"v":0,"d":"0.00"}},{"v":0,"d":"0.00"}]